lending/lending_fUSD_20240507
["ID","MTS","AMOUNT","RATE_DAILY","PERIOD"]
[326588481,1715119856139,-259.39,0.00019452,2]
[326588482,1715119856150,-500.0,0.00019452,2]
[326588483,1715119856161,-500.0,0.00019452,2]
[326588484,1715119856173,-588.07,0.00019452,2]
[326588485,1715119856184,-500.0,0.00019452,2]
[326588486,1715119856194,-248.62,0.00019452,2]
[326588487,1715119856205,-500.0,0.00019452,2]
[326588488,1715119856216,-500.0,0.00019452,2]
[326588489,1715119856227,-500.0,0.00019452,2]
[326588490,1715119856238,-500.0,0.00019452,2]
[326588491,1715119856249,-890.12,0.00019452,2]
[326588492,1715119856517,-500.0,0.00019452,2]
[326588493,1715119856537,-500.0,0.00019452,2]
[326588494,1715119856547,-500.0,0.00019452,2]
[326588495,1715119856556,-500.0,0.00019452,2]
[326588496,1715119856566,-500.0,0.00019452,2]
[326588497,1715119856575,-500.0,0.00019452,2]
[326588498,1715119856584,-500.0,0.00019452,2]
[326588499,1715119856594,-500.0,0.00019452,2]
[326588500,1715119856603,-850.11,0.00019452,2]
[326588501,1715119856612,-500.0,0.00019452,2]
[326588502,1715119856622,-500.0,0.00019452,2]
[326588503,1715119856632,-500.0,0.00019452,2]
[326588504,1715119856641,-932.93,0.00019452,2]
[326588505,1715119856651,-500.0,0.00019452,2]
[326588506,1715119856660,-500.0,0.00019452,2]
[326588507,1715119856671,-500.0,0.00019452,2]
[326588508,1715119856682,-500.0,0.00019452,2]
[326588509,1715119856691,-500.0,0.00019452,2]
[326588510,1715119856700,-500.0,0.00019452,2]
[326588511,1715119856710,-500.0,0.00019452,2]
[326588512,1715119856719,-500.0,0.00019452,2]
[326588513,1715119856729,-828.94,0.00019452,2]
[326588514,1715119856738,-500.0,0.00019452,2]
[326588515,1715119856747,-151.21,0.00019452,2]
[326588516,1715119856757,-500.0,0.00019452,2]
[326588517,1715119856767,-500.0,0.00019452,2]
[326588518,1715119856776,-186.36,0.00019452,2]
[326588519,1715119856785,-500.0,0.00019452,2]
[326588520,1715119856794,-500.0,0.00019452,2]
[326588521,1715119856803,-500.0,0.00019452,2]
[326588522,1715119856813,-500.0,0.00019452,2]
[326588523,1715119856822,-505.16,0.00019452,2]
[326588524,1715119856831,-500.0,0.00019452,2]
[326588525,1715119856841,-500.0,0.00019452,2]
[326588526,1715119856850,-500.0,0.00019452,2]
[326588527,1715119856859,-500.0,0.00019452,2]
[326588528,1715119856869,-500.0,0.00019452,2]
[326588529,1715119856879,-500.0,0.00019452,2]
[326588530,1715119856888,-500.0,0.00019452,2]
[326588531,1715119856896,-500.0,0.00019452,2]
[326588532,1715119856906,-831.91,0.00019452,2]
[326588533,1715119856916,-2890.11,0.00019452,2]
[326588534,1715119856925,-334.17,0.00019452,2]
[326588535,1715119856935,-500.0,0.00019452,2]
[326588536,1715119856949,-525.16937602,0.00019452,2]
[326588537,1715119856959,-500.0,0.00019452,2]
[326588538,1715119856968,-500.0,0.00019452,2]
[326588539,1715119856977,-500.0,0.00019452,2]
[326588540,1715119856988,-789.32,0.00019452,2]
[326588541,1715119856997,-500.0,0.00019452,2]
[326588542,1715119857006,-500.0,0.00019452,2]
[326588543,1715119857015,-500.0,0.00019452,2]
[326588544,1715119857027,-500.0,0.00019452,2]
[326588545,1715119857035,-500.0,0.00019452,2]
[326588546,1715119857044,-500.0,0.00019452,2]
[326588547,1715119857054,-500.0,0.00019452,2]
[326588548,1715119857062,-1838.64,0.00019452,2]
[326588549,1715119857072,-500.0,0.00019452,2]
[326588550,1715119857081,-338.98,0.00019452,2]
[326588551,1715119857090,-500.0,0.00019452,2]
[326588552,1715119857099,-500.0,0.00019452,2]
[326588553,1715119857108,-500.0,0.00019452,2]
[326588554,1715119857118,-500.0,0.00019452,2]
[326588555,1715119857127,-500.0,0.00019452,2]
[326588556,1715119857136,-500.0,0.00019452,2]
[326588557,1715119857145,-500.0,0.00019452,2]
[326588558,1715119857155,-500.0,0.00019452,2]
[326588559,1715119857164,-500.0,0.00019452,2]
[326588560,1715119857174,-179.63,0.00019452,2]
[326588561,1715119857183,-500.0,0.00019452,2]
[326588562,1715119857192,-500.0,0.00019452,2]
[326588563,1715119857202,-615.68,0.00019452,2]
[326588564,1715119857211,-500.0,0.00019452,2]
[326588565,1715119857220,-500.0,0.00019452,2]
[326588566,1715119857229,-500.0,0.00019452,2]
[326588567,1715119857238,-500.0,0.00019452,2]
[326588568,1715119857247,-500.0,0.00019452,2]
[326588569,1715119857257,-1016.56,0.00019452,2]
[326588570,1715119857266,-389.8,0.00019452,2]
[326588571,1715119857275,-500.0,0.00019452,2]
[326588572,1715119857284,-500.0,0.00019452,2]
[326588573,1715119857293,-500.0,0.00019452,2]
[326588574,1715119857303,-500.0,0.00019452,2]
[326588575,1715119857312,-500.0,0.00019452,2]
[326588576,1715119857321,-182.54,0.00019452,2]
[326588577,1715119857330,-266.09,0.00019452,2]
[326588578,1715119857340,-500.0,0.00019452,2]
[326588579,1715119857349,-402.26,0.00019452,2]
[326588580,1715119857359,-875.3,0.00019452,2]
[326588581,1715119857369,-500.0,0.00019452,2]
[326588582,1715119857378,-209.38,0.00019452,2]
[326588583,1715119857388,-648.96,0.00019452,2]
[326588584,1715119857401,-500.0,0.00019452,2]
[326588585,1715119857411,-500.0,0.00019452,2]
[326588586,1715119857422,-500.0,0.00019452,2]
[326588587,1715119857432,-500.0,0.00019452,2]
[326588588,1715119857441,-500.0,0.00019452,2]
[326588589,1715119857451,-500.0,0.00019452,2]
[326588590,1715119857460,-1782.61,0.00019452,2]
[326588591,1715119857470,-500.0,0.00019452,2]
[326588592,1715119857481,-432.46,0.00019452,2]
[326588593,1715119857491,-1028.09,0.00019452,2]
[326588594,1715119857500,-500.0,0.00019452,2]
[326588595,1715119857510,-500.0,0.00019452,2]
[326588596,1715119857519,-1195.08,0.00019452,2]
[326588597,1715119857528,-500.0,0.00019452,2]
[326588598,1715119857537,-500.0,0.00019452,2]
[326588599,1715119857546,-500.0,0.00019452,2]
[326588600,1715119857556,-500.0,0.00019452,2]
[326588601,1715119857565,-317.95,0.00019452,2]
[326588602,1715119857574,-1256.37,0.00019452,2]
[326588603,1715119857584,-500.0,0.00019452,2]
[326588604,1715119857593,-181.37,0.00019452,2]
[326588605,1715119857603,-599.64,0.00019452,2]
[326588606,1715119857612,-219.2,0.00019452,2]
[326588607,1715119857622,-613.4,0.00019452,2]
[326588608,1715119857631,-500.0,0.00019452,2]
[326588609,1715119857641,-253.85,0.00019452,2]
[326588610,1715119857650,-500.0,0.00019452,2]
[326588611,1715119857659,-3203.8,0.00019452,2]
[326588612,1715119857670,-500.0,0.00019452,2]
[326588613,1715119857682,-500.0,0.00019452,2]
[326588614,1715119857692,-5342.88,0.00019452,2]
[326588615,1715119857701,-500.0,0.00019452,2]
[326588616,1715119857710,-500.0,0.00019452,2]
[326588617,1715119857720,-500.0,0.00019452,2]
[326588618,1715119857730,-500.0,0.00019452,2]
[326588619,1715119857739,-500.0,0.00019452,2]
[326588620,1715119857748,-815.42,0.00019452,2]
[326588621,1715119857758,-500.0,0.00019452,2]
[326588622,1715119857768,-500.0,0.00019452,2]
[326588623,1715119857778,-500.0,0.00019452,2]
[326588624,1715119857787,-500.0,0.00019452,2]
[326588625,1715119857796,-500.0,0.00019452,2]
[326588626,1715119857806,-500.0,0.00019452,2]
[326588627,1715119857815,-500.0,0.00019452,2]
[326588628,1715119857825,-500.0,0.00019452,2]
[326588629,1715119857834,-1949.26,0.00019452,2]
[326588630,1715119857843,-500.0,0.00019452,2]
[326588631,1715119857853,-500.0,0.00019452,2]
[326588632,1715119857862,-500.0,0.00019452,2]
[326588633,1715119857872,-500.0,0.00019452,2]
[326588634,1715119857882,-500.0,0.00019452,2]
[326588635,1715119857891,-500.0,0.00019452,2]
[326588636,1715119857900,-500.0,0.00019452,2]
[326588637,1715119857910,-500.0,0.00019452,2]
[326588638,1715119857920,-739.0,0.000195,3]
[326588639,1715119857929,-576.0,0.0001956,15]
[326588640,1715119857939,-1090.0,0.00019565,15]
[326588641,1715119857952,-150.5,0.00019565,15]
[326588642,1715119857962,-576.0,0.0001957,15]
[326588643,1715119857972,-1090.0,0.00019575,15]
[326588644,1715119857982,-150.5,0.00019575,15]
[326588645,1715119857991,-239.0,0.0001958,15]
[326588646,1715119858000,-576.0,0.0001958,15]
[326588647,1715119858010,-228.47,0.00019585,15]
[326588648,1715119858019,-150.5,0.00019585,15]
[326588649,1715119858031,-1090.0,0.00019585,15]
[326588650,1715119858040,-273.5,0.0001968,15]
[326588651,1715119858049,-150.5,0.0001969,15]
[326588652,1715119858059,-3350.0,0.000197,3]
[326588653,1715119858068,-174.51121851,0.00019726,2]
[326588654,1715119858078,-500.0,0.00019726,2]
[326588655,1715119858087,-274.91,0.00019726,2]
[326588656,1715119858097,-500.0,0.00019726,2]
[326588657,1715119858106,-390.92,0.00019726,2]
[326588658,1715119858115,-383.38018598,0.00019726,2]
[326588659,1715119858124,-192.48,0.00019726,2]
[326588660,1715119858133,-500.0,0.00019726,2]
[326588661,1715119858143,-565.76,0.00019726,2]
[326588662,1715119858152,-524.48,0.00019726,2]
[326588663,1715119858161,-500.0,0.00019726,2]
[326588664,1715119858172,-500.0,0.00019726,2]
[326588665,1715119858181,-500.0,0.00019726,2]
[326588666,1715119858190,-500.0,0.00019726,2]
[326588667,1715119858199,-500.0,0.00019726,2]
[326588668,1715119858208,-500.0,0.00019726,2]
[326588669,1715119858218,-500.0,0.00019726,2]
[326588670,1715119858227,-500.0,0.00019726,2]
[326588671,1715119858236,-500.0,0.00019726,2]
[326588672,1715119858245,-317.36,0.00019726,2]
[326588673,1715119858254,-176.22,0.00019726,2]
[326588674,1715119858263,-500.0,0.00019726,2]
[326588675,1715119858272,-500.0,0.00019726,2]
[326588676,1715119858281,-445.4,0.00019726,2]
[326588677,1715119858290,-500.0,0.00019726,2]
[326588678,1715119858300,-561.58,0.00019726,2]
[326588679,1715119858309,-500.0,0.00019726,2]
[326588680,1715119858319,-500.0,0.00019726,2]
[326588681,1715119858328,-287.8,0.00019726,2]
[326588682,1715119858337,-500.0,0.00019726,2]
[326588683,1715119858346,-500.0,0.00019726,2]
[326588684,1715119858355,-342.56,0.00019726,2]
[326588685,1715119858364,-500.0,0.00019726,2]
[326588686,1715119858373,-500.0,0.00019726,2]
[326588687,1715119858383,-500.0,0.00019726,2]
[326588688,1715119858392,-500.0,0.00019726,2]
[326588689,1715119858401,-500.0,0.00019726,2]
[326588690,1715119858411,-500.0,0.00019726,2]
[326588691,1715119858420,-500.0,0.00019726,2]
[326588692,1715119858430,-500.0,0.00019726,2]
[326588693,1715119858440,-277.12,0.00019726,2]
[326588694,1715119858451,-500.0,0.00019726,2]
[326588695,1715119858461,-500.0,0.00019726,2]
[326588696,1715119858472,-500.0,0.00019726,2]
[326588697,1715119858481,-607.66,0.00019726,2]
[326588698,1715119858491,-500.0,0.00019726,2]
[326588699,1715119858500,-500.0,0.00019726,2]
[326588700,1715119858509,-500.0,0.00019726,2]
[326588701,1715119858520,-636.48,0.00019726,2]
[326588702,1715119858532,-500.0,0.00019726,2]
[326588703,1715119858543,-257.28,0.00019726,2]
[326588704,1715119858553,-500.0,0.00019726,2]
[326588705,1715119858564,-208.12,0.00019726,2]
[326588706,1715119858574,-156.0,0.00019726,2]
[326588707,1715119858583,-341.1,0.00019726,2]
[326588708,1715119858593,-413.34,0.00019726,2]
[326588709,1715119858602,-500.0,0.00019726,2]
[326588710,1715119858612,-500.0,0.00019726,2]
[326588711,1715119858623,-500.0,0.00019726,2]
[326588712,1715119858634,-500.0,0.00019726,2]
[326588713,1715119858646,-500.0,0.00019726,2]
[326588714,1715119858656,-500.0,0.00019726,2]
[326588715,1715119858667,-285.76,0.00019726,2]
[326588716,1715119858677,-564.16,0.00019726,2]
[326588717,1715119858686,-633.5,0.00019726,2]
[326588718,1715119858695,-500.0,0.00019726,2]
[326588719,1715119858705,-500.0,0.00019726,2]
[326588720,1715119858715,-500.0,0.00019726,2]
[326588721,1715119858723,-500.0,0.00019726,2]
[326588722,1715119858732,-180.26,0.00019726,2]
[326588723,1715119858742,-257.0,0.00019726,2]
[326588724,1715119858751,-625.48,0.00019726,2]
[326588725,1715119858761,-500.0,0.00019726,2]
[326588726,1715119858770,-500.0,0.00019726,2]
[326588727,1715119858780,-500.0,0.00019726,2]
[326588728,1715119858790,-500.0,0.00019726,2]
[326588729,1715119858799,-500.0,0.00019726,2]
[326588730,1715119858809,-500.0,0.00019726,2]
[326588731,1715119858819,-500.0,0.00019726,2]
[326588732,1715119858830,-500.0,0.00019726,2]
[326588733,1715119858840,-500.0,0.00019726,2]
[326588734,1715119858850,-581.12,0.00019726,2]
[326588735,1715119858860,-367.16,0.00019726,2]
[326588736,1715119858870,-500.0,0.00019726,2]
[326588737,1715119858879,-485.83,0.00019726,2]
[326588738,1715119858889,-500.0,0.00019726,2]
[326588739,1715119858899,-190.72,0.00019726,2]
[326588740,1715119858909,-271.58,0.00019726,2]
[326588741,1715119858919,-500.0,0.00019726,2]
[326588742,1715119858928,-500.0,0.00019726,2]
[326588743,1715119858938,-500.0,0.00019726,2]
[326588744,1715119858949,-249.34,0.00019726,2]
[326588745,1715119858962,-500.0,0.00019726,2]
[326588746,1715119858972,-550.23,0.00019726,2]
[326588747,1715119858981,-316.4,0.00019726,2]
[326588748,1715119858990,-500.0,0.00019726,2]
[326588749,1715119859001,-313.14,0.00019726,2]
[326588750,1715119859011,-500.04,0.00019726,2]
[326588751,1715119859021,-500.0,0.00019726,2]
[326588752,1715119859030,-500.0,0.00019726,2]
[326588753,1715119859042,-356.14,0.00019726,2]
[326588754,1715119859052,-500.0,0.00019726,2]
[326588755,1715119859061,-500.0,0.00019726,2]
[326588756,1715119859071,-500.0,0.00019726,2]
[326588757,1715119859080,-500.0,0.00019726,2]
[326588758,1715119859090,-500.0,0.00019726,2]
[326588759,1715119859099,-402.87,0.00019726,2]
[326588760,1715119859109,-500.0,0.00019726,2]
[326588761,1715119859118,-500.0,0.00019726,2]
[326588762,1715119859127,-258.08,0.00019726,2]
[326588763,1715119859136,-500.0,0.00019726,2]
[326588764,1715119859146,-500.0,0.00019726,2]
[326588765,1715119859155,-500.0,0.00019726,2]
[326588766,1715119859165,-582.3,0.00019726,2]
[326588767,1715119859174,-500.0,0.00019726,2]
[326588768,1715119859183,-168.69,0.00019726,2]
[326588769,1715119859193,-500.0,0.00019726,2]
[326588770,1715119859203,-293.93,0.00019726,2]
[326588771,1715119859212,-150.0,0.00019726,2]
[326588772,1715119859222,-500.0,0.00019726,2]
[326588773,1715119859231,-500.0,0.00019726,2]
[326588774,1715119859241,-500.0,0.00019726,2]
[326588775,1715119859250,-485.74107505,0.00019726,2]
[326588776,1715119859260,-500.0,0.00019726,2]
[326588777,1715119859269,-500.0,0.00019726,2]
[326588778,1715119859279,-500.0,0.00019726,2]
[326588779,1715119859288,-500.0,0.00019726,2]
[326588780,1715119859298,-301.87,0.00019726,2]
[326588781,1715119859307,-500.0,0.00019726,2]
[326588782,1715119859317,-500.0,0.00019726,2]
[326588783,1715119859326,-500.0,0.00019726,2]
[326588784,1715119859335,-405.61,0.00019726,2]
[326588785,1715119859346,-480.99,0.00019726,2]
[326588786,1715119859356,-500.0,0.00019726,2]
[326588787,1715119859365,-942.72,0.00019726,2]
[326588788,1715119859375,-500.0,0.00019726,2]
[326588789,1715119859384,-500.0,0.00019726,2]
[326588790,1715119859393,-500.0,0.00019726,2]
[326588791,1715119859403,-500.0,0.00019726,2]
[326588792,1715119859413,-494.76,0.00019726,2]
[326588793,1715119859423,-500.0,0.00019726,2]
[326588794,1715119859432,-500.0,0.00019726,2]
[326588795,1715119859441,-500.0,0.00019726,2]
[326588796,1715119859451,-408.09,0.00019726,2]
[326588797,1715119859460,-500.0,0.00019726,2]
[326588798,1715119859470,-500.0,0.00019726,2]
[326588799,1715119859479,-196.78,0.00019726,2]
[326588800,1715119859489,-515.24,0.00019726,2]
[326588801,1715119859499,-440.61,0.00019726,2]
[326588802,1715119859508,-381.76,0.00019726,2]
[326588803,1715119859518,-500.0,0.00019726,2]
[326588804,1715119859527,-500.0,0.00019726,2]
[326588805,1715119859537,-500.0,0.00019726,2]
[326588806,1715119859547,-500.0,0.00019726,2]
[326588807,1715119859556,-500.0,0.00019726,2]
[326588808,1715119859566,-602.33,0.00019726,2]
[326588809,1715119859576,-500.0,0.00019726,2]
[326588810,1715119859585,-1730.51,0.00019726,2]
[326588811,1715119859595,-500.0,0.00019726,2]
[326588812,1715119859604,-500.0,0.00019726,2]
[326588813,1715119859614,-500.0,0.00019726,2]
[326588814,1715119859623,-350.37334862,0.00019726,2]
[326588815,1715119859632,-500.0,0.00019726,2]
[326588816,1715119859642,-624.2,0.00019726,2]
[326588817,1715119859652,-500.0,0.00019726,2]
[326588818,1715119859792,-500.0,0.00019726,2]
[326588819,1715119859827,-638.56,0.00019726,2]
[326588820,1715119859836,-500.0,0.00019726,2]
[326588821,1715119859846,-500.0,0.00019726,2]
[326588822,1715119859856,-500.0,0.00019726,2]
[326588823,1715119859866,-274.78,0.00019726,2]
[326588824,1715119859875,-500.0,0.00019726,2]
[326588825,1715119859885,-500.0,0.00019726,2]
[326588826,1715119859894,-500.0,0.00019726,2]
[326588827,1715119859904,-500.0,0.00019726,2]
[326588828,1715119859914,-204.22,0.00019726,2]
[326588829,1715119859923,-500.0,0.00019726,2]
[326588830,1715119859932,-500.0,0.00019726,2]
[326588831,1715119859942,-500.0,0.00019726,2]
[326588832,1715119859955,-500.0,0.00019726,2]
[326588833,1715119859965,-500.0,0.00019726,2]
[326588834,1715119859975,-500.0,0.00019726,2]
[326588835,1715119859985,-500.0,0.00019726,2]
[326588836,1715119859995,-500.0,0.00019726,2]
[326588837,1715119860005,-500.0,0.00019726,2]
[326588838,1715119860014,-414.39266692,0.00019726,2]
[326588839,1715119860024,-500.0,0.00019726,2]
[326588840,1715119860034,-500.0,0.00019726,2]
[326588841,1715119860043,-500.0,0.00019726,2]
[326588842,1715119860053,-500.0,0.00019726,2]
[326588843,1715119860063,-500.0,0.00019726,2]
[326588844,1715119860072,-500.0,0.00019726,2]
[326588845,1715119860088,-500.0,0.00019726,2]
[326588846,1715119860102,-500.0,0.00019726,2]
[326588847,1715119860113,-500.0,0.00019726,2]
[326588848,1715119860124,-861.16,0.00019726,2]
[326588849,1715119860134,-697.67,0.00019726,2]
[326588850,1715119860145,-516.54,0.00019726,2]
[326588851,1715119860155,-500.0,0.00019726,2]
[326588852,1715119860167,-1094.36,0.00019726,2]
[326588853,1715119860177,-500.0,0.00019726,2]
[326588854,1715119860187,-500.0,0.00019726,2]
[326588855,1715119860197,-500.0,0.00019726,2]
[326588856,1715119860207,-500.0,0.00019726,2]
[326588857,1715119860217,-971.99,0.00019726,2]
[326588858,1715119860227,-500.0,0.00019726,2]
[326588859,1715119860238,-500.0,0.00019726,2]
[326588860,1715119860248,-3689.41,0.00019726,2]
[326588861,1715119860258,-500.0,0.00019726,2]
[326588862,1715119860268,-500.0,0.00019726,2]
[326588863,1715119860279,-500.0,0.00019726,2]
[326588864,1715119860290,-616.45,0.00019726,2]
[326588865,1715119860300,-569.47,0.00019726,2]
[326588866,1715119860311,-622.05,0.00019726,2]
[326588867,1715119860321,-500.0,0.00019726,2]
[326588868,1715119860332,-500.0,0.00019726,2]
[326588869,1715119860342,-500.0,0.00019726,2]
[326588870,1715119860352,-500.0,0.00019726,2]
[326588871,1715119860363,-500.0,0.00019726,2]
[326588872,1715119860373,-500.0,0.00019726,2]
[326588873,1715119860383,-500.0,0.00019726,2]
[326588874,1715119860393,-890.12,0.00019726,2]
[326588875,1715119860403,-500.0,0.00019726,2]
[326588876,1715119860414,-500.0,0.00019726,2]
[326588877,1715119860428,-500.0,0.00019726,2]
[326588878,1715119860438,-500.0,0.00019726,2]
[326588879,1715119860447,-153.89,0.00019726,2]
[326588880,1715119860457,-500.0,0.00019726,2]
[326588881,1715119860467,-540.16,0.00019726,2]
[326588882,1715119860477,-850.11,0.00019726,2]
[326588883,1715119860487,-602.19,0.00019726,2]
[326588884,1715119860497,-573.2,0.00019726,2]
[326588885,1715119860507,-500.0,0.00019726,2]
[326588886,1715119860517,-932.93,0.00019726,2]
[326588887,1715119860527,-500.0,0.00019726,2]
[326588888,1715119860537,-500.0,0.00019726,2]
[326588889,1715119860547,-500.0,0.00019726,2]
[326588890,1715119860557,-150.68,0.00019726,2]
[326588891,1715119860567,-500.0,0.00019726,2]
[326588892,1715119860577,-500.0,0.00019726,2]
[326588893,1715119860587,-500.0,0.00019726,2]
[326588894,1715119860596,-500.0,0.00019726,2]
[326588895,1715119860606,-828.94,0.00019726,2]
[326588896,1715119860616,-629.22,0.00019726,2]
[326588897,1715119860626,-500.0,0.00019726,2]
[326588898,1715119860636,-523.3,0.00019726,2]
[326588899,1715119860645,-500.0,0.00019726,2]
[326588900,1715119860656,-500.0,0.00019726,2]
[326588901,1715119860668,-500.0,0.00019726,2]
[326588902,1715119860680,-500.0,0.00019726,2]
[326588903,1715119860690,-505.16,0.00019726,2]
[326588904,1715119860700,-500.0,0.00019726,2]
[326588905,1715119860712,-500.0,0.00019726,2]
[326588906,1715119860722,-217.4,0.00019726,2]
[326588907,1715119860732,-500.0,0.00019726,2]
[326588908,1715119860742,-500.0,0.00019726,2]
[326588909,1715119860752,-500.0,0.00019726,2]
[326588910,1715119860763,-500.0,0.00019726,2]
[326588911,1715119860774,-500.0,0.00019726,2]
[326588912,1715119860783,-831.91,0.00019726,2]
[326588913,1715119860793,-2890.11,0.00019726,2]
[326588914,1715119860803,-500.0,0.00019726,2]
[326588915,1715119860813,-500.0,0.00019726,2]
[326588916,1715119860824,-500.0,0.00019726,2]
[326588917,1715119860835,-500.0,0.00019726,2]
[326588918,1715119860844,-789.32,0.00019726,2]
[326588919,1715119860854,-228.05,0.00019726,2]
[326588920,1715119860864,-500.0,0.00019726,2]
[326588921,1715119860873,-500.0,0.00019726,2]
[326588922,1715119860884,-500.0,0.00019726,2]
[326588923,1715119860894,-500.0,0.00019726,2]
[326588924,1715119860904,-500.0,0.00019726,2]
[326588925,1715119860913,-1838.64,0.00019726,2]
[326588926,1715119860926,-516.38,0.00019726,2]
[326588927,1715119860936,-500.0,0.00019726,2]
[326588928,1715119860946,-500.0,0.00019726,2]
[326588929,1715119860959,-500.0,0.00019726,2]
[326588930,1715119860969,-500.0,0.00019726,2]
[326588931,1715119860979,-316.29,0.00019726,2]
[326588932,1715119860989,-500.0,0.00019726,2]
[326588933,1715119860999,-500.0,0.00019726,2]
[326588934,1715119861008,-500.0,0.00019726,2]
[326588935,1715119861027,-500.0,0.00019726,2]
[326588936,1715119861051,-500.0,0.00019726,2]
[326588937,1715119861078,-500.0,0.00019726,2]
[326588938,1715119861103,-500.0,0.00019726,2]
[326588939,1715119861126,-163.08,0.00019726,2]
[326588940,1715119861150,-500.0,0.00019726,2]
[326588941,1715119861182,-500.0,0.00019726,2]
[326588942,1715119861199,-1016.56,0.00019726,2]
[326588943,1715119861209,-500.0,0.00019726,2]
[326588944,1715119861219,-500.0,0.00019726,2]
[326588945,1715119861228,-500.0,0.00019726,2]
[326588946,1715119861238,-500.0,0.00019726,2]
[326588947,1715119861247,-500.0,0.00019726,2]
[326588948,1715119861257,-500.0,0.00019726,2]
[326588949,1715119861267,-875.3,0.00019726,2]
[326588950,1715119861276,-500.0,0.00019726,2]
[326588951,1715119861286,-648.96,0.00019726,2]
[326588952,1715119861295,-500.0,0.00019726,2]
[326588953,1715119861305,-218.18,0.00019726,2]
[326588954,1715119861314,-500.0,0.00019726,2]
[326588955,1715119861324,-275.16,0.00019726,2]
[326588956,1715119861334,-500.0,0.00019726,2]
[326588957,1715119861343,-1782.61,0.00019726,2]
[326588958,1715119861353,-500.0,0.00019726,2]
[326588959,1715119861363,-1028.09,0.00019726,2]
[326588960,1715119861373,-168.97,0.00019726,2]
[326588961,1715119861382,-1195.08,0.00019726,2]
[326588962,1715119861392,-479.40352069,0.00019726,2]
[326588963,1715119861402,-500.0,0.00019726,2]
[326588964,1715119861412,-500.0,0.00019726,2]
[326588965,1715119861422,-1256.37,0.00019726,2]
[326588966,1715119861432,-500.0,0.00019726,2]
[326588967,1715119861442,-229.24,0.00019726,2]
[326588968,1715119861451,-611.06,0.00019726,2]
[326588969,1715119861461,-3203.8,0.00019726,2]
[326588970,1715119861471,-395.03,0.00019726,2]
[326588971,1715119861481,-500.0,0.00019726,2]
[326588972,1715119861490,-5342.88,0.00019726,2]
[326588973,1715119861500,-500.0,0.00019726,2]
[326588974,1715119861510,-500.0,0.00019726,2]
[326588975,1715119861519,-500.0,0.00019726,2]
[326588976,1715119861528,-500.0,0.00019726,2]
[326588977,1715119861538,-191.9,0.00019726,2]
[326588978,1715119861547,-815.42,0.00019726,2]
[326588979,1715119861556,-500.0,0.00019726,2]
[326588980,1715119861566,-500.0,0.00019726,2]